[Event "Titled Tuesday Blitz June 13 Late 2023"]
[White "Ladan, Nicholas"]
[Black "Kaufman, Raymond"]
[WhiteFideId "30918855"]
[BlackFideId "2015056"]
[WhiteElo "2167"]
[BlackElo "2264"]
[Result "0-1"]
[Round "9"]
[TimeControl "180+2"]
[Date "2023.06.13"]
[WhiteClock "0:00:02"]
[BlackClock "0:00:58"]
[Board "112"]

1. b4 {[%clk 0:03:00]}  c6 {[%clk 0:02:58]} 2. Bb2 {[%clk 0:03:00]}  Qb6 {[%clk 0:02:58]} 3. a3 {[%clk 0:02:53]}  a5 {[%clk 0:02:58]} 4. c3 {[%clk 0:02:48]}  d5 {[%clk 0:02:54]} 5. Nf3 {[%clk 0:02:44]}  Nf6 {[%clk 0:02:48]} 6. e3 {[%clk 0:02:31]}  g6 {[%clk 0:02:43]} 7. Qb3 {[%clk 0:02:28]}  Na6 {[%clk 0:02:30]} 8. d4 {[%clk 0:02:10]}  Bg7 {[%clk 0:02:26]} 9. Nbd2 {[%clk 0:02:09]}  Nc7 {[%clk 0:02:16]} 10. c4 {[%clk 0:02:06]}  axb4 {[%clk 0:02:13]} 11. axb4 {[%clk 0:02:02]}  Rxa1+ {[%clk 0:02:12]} 12. Bxa1 {[%clk 0:02:03]}  O-O {[%clk 0:02:09]} 13. Bd3 {[%clk 0:01:42]}  Bf5 {[%clk 0:01:52]} 14. Bxf5 {[%clk 0:01:33]}  gxf5 {[%clk 0:01:53]} 15. O-O {[%clk 0:01:33]}  Ra8 {[%clk 0:01:48]} 16. Bb2 {[%clk 0:01:27]}  e6 {[%clk 0:01:45]} 17. Ne5 {[%clk 0:01:03]}  Bf8 {[%clk 0:01:35]} 18. c5 {[%clk 0:01:02]}  Qb5 {[%clk 0:01:31]} 19. Ra1 {[%clk 0:00:39]}  Rxa1+ {[%clk 0:01:24]} 20. Bxa1 {[%clk 0:00:40]}  Qe2 {[%clk 0:01:24]} 21. Bc3 {[%clk 0:00:37]}  Bh6 {[%clk 0:01:12]} 22. g3 {[%clk 0:00:23]}  Nb5 {[%clk 0:01:10]} 23. Nf1 {[%clk 0:00:14]}  Ne4 {[%clk 0:01:07]} 24. Qa2 {[%clk 0:00:02]}  Qxa2 {[%clk 0:00:58]} 0-1


[Site "https://www.chess.com"]

[Event "Titled Tuesday Blitz June 13 Late 2023"]
[White "SicilianPanzer"]
[Black "liwadas82"]
[WhiteElo "2249"]
[BlackElo "2415"]
[Result "0-1"]
[Round "9"]
[TimeControl "180+2"]
[Date "2023.06.13"]
[WhiteClock "0:00:42"]
[BlackClock "0:02:04"]
[Board "113"]

1. e4 {[%clk 0:03:00]}  e5 {[%clk 0:02:56]} 2. Nf3 {[%clk 0:02:58]}  Nc6 {[%clk 0:02:56]} 3. Nc3 {[%clk 0:02:58]}  Nf6 {[%clk 0:02:55]} 4. a3 {[%clk 0:02:58]}  g6 {[%clk 0:02:53]} 5. d4 {[%clk 0:02:54]}  exd4 {[%clk 0:02:53]} 6. Nxd4 {[%clk 0:02:54]}  Bg7 {[%clk 0:02:53]} 7. Be3 {[%clk 0:02:30]}  O-O {[%clk 0:02:51]} 8. Be2 {[%clk 0:02:18]}  Re8 {[%clk 0:02:51]} 9. Nxc6 {[%clk 0:02:17]}  bxc6 {[%clk 0:02:50]} 10. Bf3 {[%clk 0:01:44]}  Ba6 {[%clk 0:02:49]} 11. Qd2 {[%clk 0:01:21]}  Rb8 {[%clk 0:02:49]} 12. O-O-O {[%clk 0:01:18]}  d6 {[%clk 0:02:40]} 13. g4 {[%clk 0:01:08]}  d5 {[%clk 0:02:26]} 14. g5 {[%clk 0:00:58]}  Nxe4 {[%clk 0:02:07]} 15. Nxe4 {[%clk 0:00:42]}  Bxb2+ {[%clk 0:02:04]} 0-1


[Site "https://www.chess.com"]

[Event "Titled Tuesday Blitz June 13 Late 2023"]
[White "Prieto Aranguren, Alain"]
[Black "Florianovitz, Derlei Alex"]
[WhiteFideId "2268906"]
[BlackFideId "2114178"]
[WhiteElo "2209"]
[BlackElo "1953"]
[Result "0-1"]
[Round "9"]
[TimeControl "180+2"]
[Date "2023.06.13"]
[WhiteClock "0:00:31"]
[BlackClock "0:01:04"]
[Board "116"]

1. e4 {[%clk 0:01:38]}  e6 {[%clk 0:02:57]} 2. d4 {[%clk 0:01:38]}  d5 {[%clk 0:02:57]} 3. exd5 {[%clk 0:01:39]}  exd5 {[%clk 0:02:57]} 4. Bd3 {[%clk 0:01:39]}  Bd6 {[%clk 0:02:57]} 5. Nf3 {[%clk 0:01:40]}  Bg4 {[%clk 0:02:57]} 6. O-O {[%clk 0:01:40]}  c6 {[%clk 0:02:57]} 7. c3 {[%clk 0:01:40]}  Qc7 {[%clk 0:02:56]} 8. Re1+ {[%clk 0:01:41]}  Ne7 {[%clk 0:02:56]} 9. h3 {[%clk 0:01:40]}  Bh5 {[%clk 0:02:56]} 10. Nbd2 {[%clk 0:01:40]}  Nd7 {[%clk 0:02:55]} 11. b4 {[%clk 0:01:38]}  O-O-O {[%clk 0:02:54]} 12. a4 {[%clk 0:01:38]}  Rde8 {[%clk 0:02:54]} 13. a5 {[%clk 0:01:38]}  f6 {[%clk 0:02:54]} 14. Nb3 {[%clk 0:01:38]}  g5 {[%clk 0:02:53]} 15. Nc5 {[%clk 0:01:38]}  Bxc5 {[%clk 0:02:41]} 16. bxc5 {[%clk 0:01:36]}  g4 {[%clk 0:02:42]} 17. Nh2 {[%clk 0:01:33]}  f5 {[%clk 0:02:37]} 18. a6 {[%clk 0:01:29]}  b6 {[%clk 0:02:30]} 19. cxb6 {[%clk 0:01:29]}  Nxb6 {[%clk 0:02:30]} 20. Ba3 {[%clk 0:01:04]}  Rhf8 {[%clk 0:01:40]} 21. Re6 {[%clk 0:01:03]}  Ng6 {[%clk 0:01:34]} 22. Rxe8+ {[%clk 0:01:01]}  Rxe8 {[%clk 0:01:32]} 23. Bxf5+ {[%clk 0:01:01]}  Kb8 {[%clk 0:01:32]} 24. hxg4 {[%clk 0:01:02]}  Nh4 {[%clk 0:01:28]} 25. Bxh7 {[%clk 0:00:44]}  Bg6 {[%clk 0:01:25]} 26. Bxg6 {[%clk 0:00:43]}  Nxg6 {[%clk 0:01:26]} 27. Qd2 {[%clk 0:00:39]}  Nc4 {[%clk 0:01:17]} 28. Rb1+ {[%clk 0:00:38]}  Ka8 {[%clk 0:01:15]} 29. Qa2 {[%clk 0:00:37]}  Nf4 {[%clk 0:01:07]} 30. Bc5 {[%clk 0:00:36]}  Ne2+ {[%clk 0:01:05]} 31. Kh1 {[%clk 0:00:33]}  Qxh2+ {[%clk 0:01:04]} 32. Kxh2 {[%clk 0:00:31]}  Rh8# {[%clk 0:01:04]} 0-1


[Site "https://www.chess.com"]

[Event "Titled Tuesday Blitz June 13 Late 2023"]
[White "Shapiro, Daniel"]
[Black "Osmonbekov, Talaibek"]
[WhiteFideId "2001780"]
[BlackFideId "2017253"]
[WhiteElo "2328"]
[BlackElo "2135"]
[Result "1-0"]
[Round "9"]
[TimeControl "180+2"]
[Date "2023.06.13"]
[WhiteClock "0:00:07"]
[BlackClock "0:00:00"]
[Board "117"]

1. d4 {[%clk 0:03:00]}  e6 {[%clk 0:02:59]} 2. c4 {[%clk 0:03:00]}  f5 {[%clk 0:02:59]} 3. Nf3 {[%clk 0:02:59]}  Nf6 {[%clk 0:02:59]} 4. Qc2 {[%clk 0:02:48]}  Be7 {[%clk 0:02:38]} 5. Nc3 {[%clk 0:02:39]}  d5 {[%clk 0:02:33]} 6. Bf4 {[%clk 0:02:36]}  c6 {[%clk 0:02:33]} 7. e3 {[%clk 0:02:37]}  O-O {[%clk 0:02:33]} 8. h3 {[%clk 0:02:37]}  Ne4 {[%clk 0:02:26]} 9. Bd3 {[%clk 0:02:34]}  Nd7 {[%clk 0:02:25]} 10. O-O {[%clk 0:02:33]}  h6 {[%clk 0:02:04]} 11. Bh2 {[%clk 0:02:33]}  Qe8 {[%clk 0:01:54]} 12. Ne2 {[%clk 0:02:32]}  Ndf6 {[%clk 0:01:25]} 13. Ne5 {[%clk 0:02:30]}  Bd7 {[%clk 0:01:24]} 14. f3 {[%clk 0:02:18]}  Nd6 {[%clk 0:01:23]} 15. b3 {[%clk 0:02:07]}  Rc8 {[%clk 0:01:20]} 16. g4 {[%clk 0:01:44]}  b6 {[%clk 0:01:05]} 17. Kh1 {[%clk 0:01:41]}  c5 {[%clk 0:00:55]} 18. Rg1 {[%clk 0:01:35]}  cxd4 {[%clk 0:00:49]} 19. exd4 {[%clk 0:01:34]}  dxc4 {[%clk 0:00:48]} 20. bxc4 {[%clk 0:01:33]}  Bc6 {[%clk 0:00:36]} 21. gxf5 {[%clk 0:01:19]}  exf5 {[%clk 0:00:18]} 22. Bxf5 {[%clk 0:01:17]}  Nxf5 {[%clk 0:00:08]} 23. Qxf5 {[%clk 0:01:17]}  Qh5 {[%clk 0:00:09]} 24. Qe6+ {[%clk 0:00:46]}  Kh7 {[%clk 0:00:06]} 25. Nxc6 {[%clk 0:00:38]}  Qxf3+ {[%clk 0:00:06]} 26. Rg2 {[%clk 0:00:38]}  Rxc6 {[%clk 0:00:05]} 27. Qxe7 {[%clk 0:00:35]}  Nh5 {[%clk 0:00:02]} 28. c5 {[%clk 0:00:16]}  Rf7 {[%clk 0:00:02]} 29. Qh4 {[%clk 0:00:10]}  bxc5 {[%clk 0:00:00]} 30. Qg4 {[%clk 0:00:07]} 1-0


[Site "https://www.chess.com"]

[Event "Titled Tuesday Blitz June 13 Late 2023"]
[White "Sala, Giulia"]
[Black "Sanchez, Robert"]
[WhiteFideId "2840451"]
[BlackFideId "2034360"]
[WhiteElo "1769"]
[BlackElo "1979"]
[Result "1-0"]
[Round "9"]
[TimeControl "180+2"]
[Date "2023.06.13"]
[WhiteClock "0:00:54"]
[BlackClock "0:00:09"]
[Board "118"]

1. d4 {[%clk 0:03:00]}  Nf6 {[%clk 0:02:59]} 2. Bf4 {[%clk 0:03:01]}  e6 {[%clk 0:02:57]} 3. e3 {[%clk 0:03:01]}  d5 {[%clk 0:02:57]} 4. Nf3 {[%clk 0:03:01]}  c5 {[%clk 0:02:57]} 5. Nbd2 {[%clk 0:02:59]}  Nc6 {[%clk 0:02:58]} 6. c3 {[%clk 0:02:58]}  Bd6 {[%clk 0:02:58]} 7. Bg3 {[%clk 0:02:59]}  O-O {[%clk 0:02:56]} 8. Bd3 {[%clk 0:02:59]}  Qe7 {[%clk 0:02:56]} 9. Ne5 {[%clk 0:02:59]}  Nd7 {[%clk 0:02:56]} 10. Nxd7 {[%clk 0:02:58]}  Bxd7 {[%clk 0:02:54]} 11. Bxd6 {[%clk 0:02:58]}  Qxd6 {[%clk 0:02:53]} 12. dxc5 {[%clk 0:02:59]}  Qxc5 {[%clk 0:02:49]} 13. Bxh7+ {[%clk 0:02:59]}  Kxh7 {[%clk 0:02:45]} 14. Qh5+ {[%clk 0:02:59]}  Kg8 {[%clk 0:02:45]} 15. Ne4 {[%clk 0:03:00]}  Qb5 {[%clk 0:02:21]} 16. Ng5 {[%clk 0:02:59]}  Rfd8 {[%clk 0:02:01]} 17. Qxf7+ {[%clk 0:02:57]}  Kh8 {[%clk 0:01:58]} 18. f4 {[%clk 0:02:53]}  Qd3 {[%clk 0:01:31]} 19. Kf2 {[%clk 0:02:44]}  Qf5 {[%clk 0:01:14]} 20. Qxf5 {[%clk 0:02:38]}  exf5 {[%clk 0:01:14]} 21. Nf7+ {[%clk 0:02:38]}  Kg8 {[%clk 0:01:14]} 22. Nxd8 {[%clk 0:02:39]}  Rxd8 {[%clk 0:01:11]} 23. Rad1 {[%clk 0:02:36]}  Be6 {[%clk 0:01:10]} 24. c4 {[%clk 0:02:29]}  dxc4 {[%clk 0:01:04]} 25. Rxd8+ {[%clk 0:02:30]}  Nxd8 {[%clk 0:01:05]} 26. Rd1 {[%clk 0:02:30]}  Nf7 {[%clk 0:01:00]} 27. Kf3 {[%clk 0:02:23]}  Kf8 {[%clk 0:00:58]} 28. e4 {[%clk 0:02:23]}  fxe4+ {[%clk 0:00:57]} 29. Kxe4 {[%clk 0:02:23]}  Ke7 {[%clk 0:00:58]} 30. h3 {[%clk 0:02:19]}  Nd6+ {[%clk 0:00:54]} 31. Kf3 {[%clk 0:02:17]}  Bf5 {[%clk 0:00:49]} 32. g4 {[%clk 0:02:15]}  Bd3 {[%clk 0:00:49]} 33. Ke3 {[%clk 0:02:02]}  Ne4 {[%clk 0:00:36]} 34. h4 {[%clk 0:01:44]}  b5 {[%clk 0:00:32]} 35. h5 {[%clk 0:01:43]}  Kf6 {[%clk 0:00:32]} 36. Kd4 {[%clk 0:01:40]}  Nf2 {[%clk 0:00:26]} 37. Rg1 {[%clk 0:01:28]}  a5 {[%clk 0:00:24]} 38. g5+ {[%clk 0:01:19]}  Kf7 {[%clk 0:00:23]} 39. h6 {[%clk 0:01:10]}  gxh6 {[%clk 0:00:22]} 40. gxh6 {[%clk 0:01:10]}  b4 {[%clk 0:00:20]} 41. Rg7+ {[%clk 0:01:09]}  Kf8 {[%clk 0:00:20]} 42. Ra7 {[%clk 0:01:08]}  b3 {[%clk 0:00:11]} 43. axb3 {[%clk 0:01:06]}  cxb3 {[%clk 0:00:12]} 44. h7 {[%clk 0:01:04]}  Bxh7 {[%clk 0:00:12]} 45. Rxh7 {[%clk 0:01:05]}  Nd1 {[%clk 0:00:11]} 46. Rh2 {[%clk 0:00:55]}  a4 {[%clk 0:00:11]} 47. Rd2 {[%clk 0:00:54]}  Nxb2 {[%clk 0:00:09]} 48. Rxb2 {[%clk 0:00:54]} 1-0


[Site "https://www.chess.com"]

[Event "Titled Tuesday Blitz June 13 Late 2023"]
[White "Quirke, Jeffrey"]
[Black "Gerbelli Neto, Eduardo"]
[WhiteFideId "2013029"]
[BlackFideId "2103281"]
[WhiteElo "2223"]
[BlackElo "2178"]
[Result "0-1"]
[Round "9"]
[TimeControl "180+2"]
[Date "2023.06.13"]
[WhiteClock "0:00:00"]
[BlackClock "0:00:13"]
[Board "119"]

1. e4 {[%clk 0:02:57]}  e5 {[%clk 0:02:58]} 2. d4 {[%clk 0:02:56]}  exd4 {[%clk 0:02:57]} 3. Qxd4 {[%clk 0:02:55]}  Nc6 {[%clk 0:02:56]} 4. Qe3 {[%clk 0:02:55]}  g6 {[%clk 0:02:54]} 5. Nc3 {[%clk 0:02:54]}  Bg7 {[%clk 0:02:55]} 6. Bd2 {[%clk 0:02:53]}  Nf6 {[%clk 0:02:55]} 7. O-O-O {[%clk 0:02:53]}  O-O {[%clk 0:02:54]} 8. f4 {[%clk 0:02:50]}  d5 {[%clk 0:02:39]} 9. exd5 {[%clk 0:02:14]}  Nxd5 {[%clk 0:02:40]} 10. Nxd5 {[%clk 0:02:12]}  Qxd5 {[%clk 0:02:37]} 11. Qb3 {[%clk 0:01:44]}  Be6 {[%clk 0:02:10]} 12. Bc3 {[%clk 0:01:43]}  Qxb3 {[%clk 0:02:02]} 13. axb3 {[%clk 0:01:42]}  Rfd8 {[%clk 0:01:55]} 14. Rxd8+ {[%clk 0:01:40]}  Rxd8 {[%clk 0:01:56]} 15. Nf3 {[%clk 0:01:40]}  Bd5 {[%clk 0:01:52]} 16. Bxg7 {[%clk 0:01:28]}  Bxf3 {[%clk 0:01:47]} 17. gxf3 {[%clk 0:01:21]}  Kxg7 {[%clk 0:01:47]} 18. c3 {[%clk 0:01:18]}  Ne7 {[%clk 0:01:41]} 19. Kc2 {[%clk 0:00:47]}  f5 {[%clk 0:01:37]} 20. Bc4 {[%clk 0:00:41]}  Kf6 {[%clk 0:01:32]} 21. Re1 {[%clk 0:00:40]}  Rd6 {[%clk 0:01:32]} 22. b4 {[%clk 0:00:38]}  c6 {[%clk 0:01:23]} 23. h4 {[%clk 0:00:37]}  b5 {[%clk 0:01:23]} 24. Bb3 {[%clk 0:00:36]}  h6 {[%clk 0:01:11]} 25. Ra1 {[%clk 0:00:35]}  Rd7 {[%clk 0:01:09]} 26. Re1 {[%clk 0:00:34]}  Nd5 {[%clk 0:01:04]} 27. Bxd5 {[%clk 0:00:32]}  Rxd5 {[%clk 0:01:05]} 28. Re8 {[%clk 0:00:31]}  Rd7 {[%clk 0:01:00]} 29. Rc8 {[%clk 0:00:28]}  Rd6 {[%clk 0:01:00]} 30. Rc7 {[%clk 0:00:25]}  g5 {[%clk 0:01:00]} 31. hxg5+ {[%clk 0:00:24]}  hxg5 {[%clk 0:01:01]} 32. fxg5+ {[%clk 0:00:20]}  Kxg5 {[%clk 0:01:01]} 33. Rxa7 {[%clk 0:00:20]}  Kf4 {[%clk 0:01:02]} 34. Rf7 {[%clk 0:00:18]}  Rd5 {[%clk 0:01:02]} 35. b3 {[%clk 0:00:18]}  Kxf3 {[%clk 0:01:01]} 36. c4 {[%clk 0:00:19]}  bxc4 {[%clk 0:00:53]} 37. bxc4 {[%clk 0:00:18]}  Re5 {[%clk 0:00:53]} 38. Kc3 {[%clk 0:00:18]}  f4 {[%clk 0:00:53]} 39. Kd4 {[%clk 0:00:18]}  Rh5 {[%clk 0:00:47]} 40. c5 {[%clk 0:00:14]}  Kg3 {[%clk 0:00:47]} 41. Ke4 {[%clk 0:00:12]}  Rh4 {[%clk 0:00:43]} 42. Rg7+ {[%clk 0:00:12]}  Kf2 {[%clk 0:00:37]} 43. b5 {[%clk 0:00:09]}  f3+ {[%clk 0:00:36]} 44. Kd3 {[%clk 0:00:05]}  cxb5 {[%clk 0:00:36]} 45. c6 {[%clk 0:00:06]}  Rc4 {[%clk 0:00:36]} 46. c7 {[%clk 0:00:06]}  Kf1 {[%clk 0:00:29]} 47. Rg5 {[%clk 0:00:03]}  Rxc7 {[%clk 0:00:23]} 48. Rxb5 {[%clk 0:00:03]}  Re7 {[%clk 0:00:23]} 49. Rf5 {[%clk 0:00:02]}  f2 {[%clk 0:00:23]} 50. Kd2 {[%clk 0:00:02]}  Re4 {[%clk 0:00:19]} 51. Rf7 {[%clk 0:00:01]}  Kg2 {[%clk 0:00:18]} 52. Rg7+ {[%clk 0:00:01]}  Kf3 {[%clk 0:00:16]} 53. Rf7+ {[%clk 0:00:01]}  Kg2 {[%clk 0:00:12]} 54. Rg7+ {[%clk 0:00:00]}  Kf1 {[%clk 0:00:13]} 0-1


[Site "https://www.chess.com"]

[Event "Titled Tuesday Blitz June 13 Late 2023"]
[White "Cluke86"]
[Black "Francisco_Ferrari"]
[WhiteElo "2218"]
[BlackElo "2315"]
[Result "0-1"]
[Round "9"]
[TimeControl "180+2"]
[Date "2023.06.13"]
[WhiteClock "0:00:04"]
[BlackClock "0:00:07"]
[Board "120"]

1. e4 {[%clk 0:02:59]}  c5 {[%clk 0:03:00]} 2. Nc3 {[%clk 0:02:58]}  d6 {[%clk 0:03:00]} 3. f4 {[%clk 0:02:56]}  a6 {[%clk 0:02:58]} 4. Nf3 {[%clk 0:02:48]}  b5 {[%clk 0:02:49]} 5. a4 {[%clk 0:02:46]}  b4 {[%clk 0:02:45]} 6. Nd5 {[%clk 0:02:46]}  Bb7 {[%clk 0:02:44]} 7. Bc4 {[%clk 0:02:41]}  e6 {[%clk 0:02:41]} 8. Ne3 {[%clk 0:02:39]}  Bxe4 {[%clk 0:02:41]} 9. d3 {[%clk 0:02:37]}  Bb7 {[%clk 0:02:41]} 10. c3 {[%clk 0:02:28]}  Nc6 {[%clk 0:02:35]} 11. O-O {[%clk 0:02:27]}  Nf6 {[%clk 0:02:34]} 12. f5 {[%clk 0:02:26]}  d5 {[%clk 0:02:27]} 13. fxe6 {[%clk 0:02:24]}  fxe6 {[%clk 0:02:17]} 14. Ng5 {[%clk 0:02:11]}  Qd7 {[%clk 0:02:05]} 15. Bb3 {[%clk 0:02:04]}  Bd6 {[%clk 0:02:02]} 16. a5 {[%clk 0:01:53]}  O-O {[%clk 0:01:59]} 17. Ba4 {[%clk 0:01:46]}  h6 {[%clk 0:01:46]} 18. Nf3 {[%clk 0:01:42]}  Qc7 {[%clk 0:01:40]} 19. cxb4 {[%clk 0:01:34]}  Nxb4 {[%clk 0:01:41]} 20. d4 {[%clk 0:01:31]}  cxd4 {[%clk 0:01:31]} 21. Qxd4 {[%clk 0:01:31]}  e5 {[%clk 0:01:27]} 22. Qb6 {[%clk 0:01:22]}  Qxb6 {[%clk 0:01:21]} 23. axb6 {[%clk 0:01:23]}  Rac8 {[%clk 0:01:08]} 24. Bd2 {[%clk 0:01:19]}  Nd3 {[%clk 0:01:07]} 25. Nf5 {[%clk 0:01:12]}  Bc5+ {[%clk 0:01:04]} 26. Kh1 {[%clk 0:01:09]}  Ng4 {[%clk 0:00:42]} 27. h3 {[%clk 0:01:04]}  Ngf2+ {[%clk 0:00:40]} 28. Kh2 {[%clk 0:01:00]}  Rxf5 {[%clk 0:00:40]} 29. Bd7 {[%clk 0:00:59]}  Rcf8 {[%clk 0:00:33]} 30. Be6+ {[%clk 0:00:55]}  Kh7 {[%clk 0:00:33]} 31. Bxf5+ {[%clk 0:00:44]}  Rxf5 {[%clk 0:00:33]} 32. b4 {[%clk 0:00:44]}  Bxb6 {[%clk 0:00:32]} 33. Nh4 {[%clk 0:00:29]}  Rf7 {[%clk 0:00:25]} 34. Ra2 {[%clk 0:00:16]}  e4 {[%clk 0:00:18]} 35. Bc3 {[%clk 0:00:15]}  d4 {[%clk 0:00:16]} 36. Ba1 {[%clk 0:00:14]}  e3 {[%clk 0:00:15]} 37. Re2 {[%clk 0:00:14]}  Ng4+ {[%clk 0:00:13]} 38. hxg4 {[%clk 0:00:13]}  Rxf1 {[%clk 0:00:13]} 39. Nf5 {[%clk 0:00:10]}  Nf2 {[%clk 0:00:09]} 40. Nxd4 {[%clk 0:00:09]}  Nxg4+ {[%clk 0:00:09]} 41. Kg3 {[%clk 0:00:08]}  Rxa1 {[%clk 0:00:08]} 42. Kxg4 {[%clk 0:00:04]}  Bxd4 {[%clk 0:00:07]} 0-1


[Site "https://www.chess.com"]

[Event "Titled Tuesday Blitz June 13 Late 2023"]
[White "Slovineanu, Viacheslav"]
[Black "campochess"]
[WhiteFideId "13900510"]
[WhiteElo "2312"]
[BlackElo "2213"]
[Result "1-0"]
[Round "9"]
[TimeControl "180+2"]
[Date "2023.06.13"]
[WhiteClock "0:00:33"]
[BlackClock "0:00:34"]
[Board "121"]

1. d4 {[%clk 0:01:48]}  Nf6 {[%clk 0:02:57]} 2. Nf3 {[%clk 0:01:48]}  g6 {[%clk 0:02:57]} 3. Nbd2 {[%clk 0:01:47]}  d5 {[%clk 0:02:56]} 4. e3 {[%clk 0:01:48]}  Bg7 {[%clk 0:02:55]} 5. b4 {[%clk 0:01:48]}  a5 {[%clk 0:02:53]} 6. b5 {[%clk 0:01:48]}  a4 {[%clk 0:02:53]} 7. Ba3 {[%clk 0:01:45]}  O-O {[%clk 0:02:51]} 8. c4 {[%clk 0:01:44]}  b6 {[%clk 0:02:48]} 9. Be2 {[%clk 0:01:39]}  Bf5 {[%clk 0:02:39]} 10. Rc1 {[%clk 0:01:33]}  Re8 {[%clk 0:02:38]} 11. O-O {[%clk 0:01:29]}  Ne4 {[%clk 0:02:36]} 12. cxd5 {[%clk 0:01:24]}  Nd6 {[%clk 0:02:16]} 13. Ne5 {[%clk 0:01:16]}  Bxe5 {[%clk 0:02:03]} 14. dxe5 {[%clk 0:01:16]}  Nb7 {[%clk 0:02:03]} 15. e4 {[%clk 0:01:09]}  Bd7 {[%clk 0:01:58]} 16. Qc2 {[%clk 0:01:05]}  Ra5 {[%clk 0:01:42]} 17. Qxc7 {[%clk 0:01:02]}  Qxc7 {[%clk 0:01:34]} 18. Rxc7 {[%clk 0:01:02]}  Nc5 {[%clk 0:01:34]} 19. Rb1 {[%clk 0:00:43]}  Rd8 {[%clk 0:01:11]} 20. Bxc5 {[%clk 0:00:33]}  bxc5 {[%clk 0:01:10]} 21. b6 {[%clk 0:00:34]}  Na6 {[%clk 0:00:46]} 22. Bxa6 {[%clk 0:00:33]}  Rxa6 {[%clk 0:00:34]} 23. b7 {[%clk 0:00:33]} 1-0


[Site "https://www.chess.com"]

[Event "Titled Tuesday Blitz June 13 Late 2023"]
[White "Fuentes Godoy, Lilia Ivonne"]
[Black "Ziatdinov, Raset"]
[WhiteFideId "5104130"]
[BlackFideId "2015323"]
[WhiteElo "2024"]
[BlackElo "2220"]
[Result "1-0"]
[Round "9"]
[TimeControl "180+2"]
[Date "2023.06.13"]
[WhiteClock "0:00:06"]
[BlackClock "0:00:01"]
[Board "122"]

1. d4 {[%clk 0:02:14]}  Nf6 {[%clk 0:02:57]} 2. c4 {[%clk 0:02:14]}  g6 {[%clk 0:02:58]} 3. d5 {[%clk 0:02:14]}  Bg7 {[%clk 0:02:58]} 4. Nc3 {[%clk 0:02:15]}  d6 {[%clk 0:02:59]} 5. e4 {[%clk 0:02:16]}  O-O {[%clk 0:02:59]} 6. h3 {[%clk 0:02:16]}  e5 {[%clk 0:02:59]} 7. Nf3 {[%clk 0:02:16]}  Nbd7 {[%clk 0:02:58]} 8. g4 {[%clk 0:02:15]}  Ne8 {[%clk 0:02:57]} 9. Bd3 {[%clk 0:02:13]}  Nc5 {[%clk 0:02:56]} 10. Bc2 {[%clk 0:02:12]}  a5 {[%clk 0:02:56]} 11. Bg5 {[%clk 0:02:11]}  f6 {[%clk 0:02:53]} 12. Be3 {[%clk 0:02:11]}  f5 {[%clk 0:02:49]} 13. Bg5 {[%clk 0:02:07]}  Bf6 {[%clk 0:02:45]} 14. Bh6 {[%clk 0:02:06]}  Bg7 {[%clk 0:02:44]} 15. Bg5 {[%clk 0:02:06]}  Bf6 {[%clk 0:02:29]} 16. Bxf6 {[%clk 0:01:49]}  Qxf6 {[%clk 0:02:29]} 17. gxf5 {[%clk 0:01:48]}  gxf5 {[%clk 0:02:27]} 18. Rg1+ {[%clk 0:01:48]}  Kh8 {[%clk 0:02:28]} 19. Ng5 {[%clk 0:01:48]}  fxe4 {[%clk 0:02:21]} 20. Ncxe4 {[%clk 0:01:48]}  Nxe4 {[%clk 0:02:21]} 21. Nxe4 {[%clk 0:01:49]}  Qf4 {[%clk 0:02:20]} 22. Qh5 {[%clk 0:01:33]}  Ng7 {[%clk 0:02:12]} 23. Qg5 {[%clk 0:01:06]}  Qxg5 {[%clk 0:01:45]} 24. Nxg5 {[%clk 0:01:05]}  Nf5 {[%clk 0:01:42]} 25. O-O-O {[%clk 0:01:02]}  h6 {[%clk 0:01:35]} 26. Ne4 {[%clk 0:00:33]}  Nd4 {[%clk 0:01:32]} 27. Rg6 {[%clk 0:00:33]}  Bf5 {[%clk 0:00:41]} 28. Rxh6+ {[%clk 0:00:33]}  Kg7 {[%clk 0:00:41]} 29. Rh4 {[%clk 0:00:33]}  Nxc2 {[%clk 0:00:34]} 30. Rg1+ {[%clk 0:00:29]}  Kf7 {[%clk 0:00:12]} 31. Kxc2 {[%clk 0:00:29]}  Rg8 {[%clk 0:00:11]} 32. Rxg8 {[%clk 0:00:20]}  Rxg8 {[%clk 0:00:12]} 33. Kd2 {[%clk 0:00:20]}  Rg2 {[%clk 0:00:11]} 34. Ke2 {[%clk 0:00:15]}  Rh2 {[%clk 0:00:08]} 35. Ng3 {[%clk 0:00:07]}  Bg6 {[%clk 0:00:02]} 36. Nf1 {[%clk 0:00:05]}  Rh1 {[%clk 0:00:02]} 37. Rh6 {[%clk 0:00:03]}  Kg7 {[%clk 0:00:02]} 38. Rh4 {[%clk 0:00:02]}  Bf5 {[%clk 0:00:02]} 39. Ng3 {[%clk 0:00:02]}  Rxh3 {[%clk 0:00:01]} 40. Nxf5+ {[%clk 0:00:02]}  Kg6 {[%clk 0:00:01]} 41. Rxh3 {[%clk 0:00:02]}  Kxf5 {[%clk 0:00:02]} 42. Re3 {[%clk 0:00:03]}  Kf4 {[%clk 0:00:02]} 43. f3 {[%clk 0:00:04]}  Kf5 {[%clk 0:00:02]} 44. Re4 {[%clk 0:00:04]}  c6 {[%clk 0:00:01]} 45. Ke3 {[%clk 0:00:04]}  cxd5 {[%clk 0:00:01]} 46. cxd5 {[%clk 0:00:05]}  b6 {[%clk 0:00:01]} 47. Rc4 {[%clk 0:00:05]}  b5 {[%clk 0:00:02]} 48. Rc6 {[%clk 0:00:05]}  Kf6 {[%clk 0:00:01]} 49. Rxd6+ {[%clk 0:00:06]}  Ke7 {[%clk 0:00:01]} 50. Re6+ {[%clk 0:00:06]} 1-0


[Site "https://www.chess.com"]